bitfinex/quotes_BTCUSD_20230904
["timestamp","ask_amount","ask_price","bid_price","bid_amount"]
[1693808547459,0.0198,25974.0,25973.0,0.0828]
[1693808549004,0.0198,25974.0,25973.0,0.56626678]
[1693808549201,0.03737799,25974.0,25973.0,0.88541246]
[1693808549333,0.03737799,25974.0,25973.0,0.88943246]
[1693808549545,0.0198,25974.0,25973.0,0.95459246]
[1693808549897,0.0208,25974.0,25973.0,0.90043246]
[1693808550214,0.0208,25974.0,25973.0,0.91243246]
[1693808550392,0.0208,25974.0,25973.0,0.85932352]
[1693808550940,0.0208,25974.0,25973.0,0.92466352]
[1693808551154,0.0208,25974.0,25973.0,0.92472352]
[1693808551356,0.0208,25974.0,25973.0,0.85932352]
[1693808552199,0.0208,25974.0,25973.0,0.89959161]
[1693808552398,0.0208,25974.0,25973.0,1.37383161]
[1693808552603,0.0208,25974.0,25973.0,1.42594753]
[1693808552806,0.0208,25974.0,25973.0,1.45903491]
[1693808552990,0.0208,25974.0,25973.0,1.60597491]
[1693808553256,0.01548712,25974.0,25973.0,1.50560239]
[1693808553456,0.01548712,25974.0,25973.0,1.53180239]
[1693808553616,0.01448712,25974.0,25973.0,1.52020239]
[1693808554019,0.00381669,25974.0,25973.0,1.52020239]
[1693808554223,0.00381669,25974.0,25973.0,1.52380239]
[1693808554424,0.00381669,25974.0,25973.0,1.46518753]
[1693808554626,0.00381669,25974.0,25973.0,1.46434753]
[1693808555027,0.00381669,25974.0,25973.0,1.46014753]
[1693808555228,0.00381669,25974.0,25973.0,1.46290753]
[1693808555465,0.00381669,25974.0,25973.0,1.45990753]
[1693808555664,0.00381669,25974.0,25973.0,1.31080753]
[1693808555866,0.00381669,25974.0,25973.0,1.31224753]
[1693808556080,0.00381669,25974.0,25973.0,1.31290753]
[1693808556278,0.00381669,25974.0,25973.0,1.45822753]
[1693808556483,0.00381669,25974.0,25973.0,1.45642753]
[1693808556683,0.00381669,25974.0,25973.0,1.31134753]
[1693808556889,0.00381669,25974.0,25973.0,1.30960753]
[1693808557105,0.00381669,25974.0,25973.0,1.31092753]
[1693808557305,0.00381669,25974.0,25973.0,1.44946753]
[1693808557483,0.00381669,25974.0,25973.0,1.49846753]
[1693808557683,0.00381669,25974.0,25973.0,1.63814753]
[1693808557885,0.00381669,25974.0,25973.0,1.49792753]
[1693808558083,0.00381669,25974.0,25973.0,1.49954753]
[1693808558318,0.00381669,25974.0,25973.0,1.63706753]
[1693808558863,0.00381669,25974.0,25973.0,1.49696753]
[1693808559064,0.00381669,25974.0,25973.0,1.49462753]
[1693808559268,0.00381669,25974.0,25973.0,1.68694753]
[1693808559468,0.00381669,25974.0,25973.0,1.82596753]
[1693808559644,0.00381669,25974.0,25973.0,1.82824753]
[1693808559874,0.00381669,25974.0,25973.0,1.82776753]
[1693808560074,0.00381669,25974.0,25973.0,1.63478753]
[1693808560280,0.00381669,25974.0,25973.0,1.63442753]
[1693808560482,0.00381669,25974.0,25973.0,1.65182753]
[1693808560690,0.00381669,25974.0,25973.0,1.74442462]
[1693808560890,0.00381669,25974.0,25973.0,1.74166462]
[1693808561093,0.00381669,25974.0,25973.0,1.73998462]
[1693808561295,0.00381669,25974.0,25973.0,1.73974462]
[1693808561499,0.00381669,25974.0,25973.0,1.73962462]
[1693808561700,0.00381669,25974.0,25973.0,1.65626753]
[1693808561900,0.00381669,25974.0,25973.0,1.65566753]
[1693808562104,0.00381669,25974.0,25973.0,1.65662753]
[1693808562307,0.00381669,25974.0,25973.0,1.65638753]
[1693808562787,0.00381669,25974.0,25973.0,1.65446753]
[1693808563009,0.00381669,25974.0,25973.0,1.65434753]
[1693808563241,0.00381669,25974.0,25973.0,1.65062753]
[1693808563455,0.00381669,25974.0,25973.0,1.65098753]
[1693808563656,0.00381669,25974.0,25973.0,1.64990753]
[1693808563953,0.00381669,25974.0,25973.0,1.64954753]
[1693808564099,0.00381669,25974.0,25973.0,1.64762753]
[1693808564327,0.00381669,25974.0,25973.0,1.64594753]
[1693808564533,0.00381669,25974.0,25973.0,1.65014753]
[1693808564733,0.00381669,25974.0,25973.0,1.65050753]
[1693808565275,0.00381669,25974.0,25973.0,1.65074753]
[1693808565507,0.00381669,25974.0,25973.0,1.65230753]
[1693808565714,0.00381669,25974.0,25973.0,1.71075427]
[1693808565917,0.00381669,25974.0,25973.0,1.71279427]
[1693808566253,0.00381669,25974.0,25973.0,1.71291427]
[1693808566450,0.00381669,25974.0,25973.0,1.71153427]
[1693808566646,0.00381669,25974.0,25973.0,1.70523427]
[1693808566862,0.00381669,25974.0,25973.0,1.70487427]
[1693808567088,0.00381669,25974.0,25973.0,1.70535427]
[1693808567286,0.00381669,25974.0,25973.0,1.70487427]
[1693808567628,0.00381669,25974.0,25973.0,1.70475427]
[1693808568038,0.00381669,25974.0,25973.0,1.71303427]
[1693808568380,0.00381669,25974.0,25973.0,1.71363427]
[1693808568585,0.00381669,25974.0,25973.0,1.71471427]
[1693808568813,0.00381669,25974.0,25973.0,1.71483427]
[1693808569059,0.00381669,25974.0,25973.0,1.71447427]
[1693808569266,0.00381669,25974.0,25973.0,1.71387427]
[1693808569402,0.00381669,25974.0,25973.0,1.71399427]
[1693808569611,0.00381669,25974.0,25973.0,1.71435427]
[1693808569805,0.00381669,25974.0,25973.0,1.71471427]
[1693808570034,0.00381669,25974.0,25973.0,1.70955427]
[1693808570201,0.00381669,25974.0,25973.0,1.71003427]
[1693808570401,0.00381669,25974.0,25973.0,1.71447427]
[1693808570647,0.00381669,25974.0,25973.0,1.71087427]
[1693808571008,0.00381669,25974.0,25973.0,1.71483427]
[1693808571183,0.00381669,25974.0,25973.0,1.71111427]
[1693808571382,0.00381669,25974.0,25973.0,1.71099427]
[1693808571585,0.00381669,25974.0,25973.0,1.70979427]
[1693808571802,0.00381669,25974.0,25973.0,1.71015427]
[1693808571968,0.00381669,25974.0,25973.0,1.70763427]
[1693808572168,0.00381669,25974.0,25973.0,1.70799427]
[1693808572373,0.00381669,25974.0,25973.0,1.70811427]
[1693808572567,0.00381669,25974.0,25973.0,1.70799427]
[1693808572868,0.00381669,25974.0,25973.0,1.41707835]
[1693808573092,0.00381669,25974.0,25973.0,1.41647835]
[1693808573272,0.00381669,25974.0,25973.0,1.41593835]
[1693808573476,0.00381669,25974.0,25973.0,1.41503835]
[1693808573678,0.00381669,25974.0,25973.0,1.41497835]
[1693808573888,0.00381669,25974.0,25973.0,1.41665835]
[1693808574084,0.00381669,25974.0,25973.0,1.41749835]
[1693808574257,0.00381669,25974.0,25973.0,1.41401835]
[1693808574460,0.00381669,25974.0,25973.0,1.41425835]
[1693808574680,0.00381669,25974.0,25973.0,1.41443835]
[1693808574888,0.00381669,25974.0,25973.0,1.41503835]
[1693808575136,0.00381669,25974.0,25973.0,1.41245835]
[1693808575348,0.00381669,25974.0,25973.0,1.41557835]
[1693808575552,0.00381669,25974.0,25973.0,1.41683835]
[1693808575759,0.00381669,25974.0,25973.0,1.41485835]
[1693808575963,0.00381669,25974.0,25973.0,1.41275835]
[1693808576140,0.00381669,25974.0,25973.0,1.41587835]
[1693808576464,0.00381669,25974.0,25973.0,1.41851835]
[1693808576670,0.00381669,25974.0,25973.0,1.41839835]
[1693808576878,0.01861669,25976.0,25975.0,0.16026809]
[1693808577084,0.01861669,25976.0,25975.0,0.95015487]
[1693808577242,0.01861669,25976.0,25975.0,1.03961487]
[1693808577440,0.01861669,25976.0,25975.0,1.03925487]
[1693808577646,0.01861669,25976.0,25975.0,1.03955487]
[1693808577846,0.01861669,25976.0,25975.0,1.06473487]
[1693808578199,0.01861669,25976.0,25975.0,1.06545487]
[1693808578406,0.01861669,25976.0,25975.0,1.06857487]
[1693808578633,0.01861669,25976.0,25975.0,1.07415487]
[1693808578827,0.01861669,25976.0,25975.0,1.07445487]
[1693808579026,0.01861669,25976.0,25975.0,1.10029487]
[1693808579240,0.01861669,25976.0,25975.0,1.10017487]
[1693808579463,0.01861669,25976.0,25975.0,1.10113487]
[1693808579681,0.01861669,25976.0,25975.0,1.10311487]
[1693808579883,0.01861669,25976.0,25975.0,1.10107487]
[1693808580079,0.01861669,25976.0,25975.0,1.10131487]
[1693808580237,0.01861669,25976.0,25975.0,1.10173487]
[1693808580434,0.01861669,25976.0,25975.0,1.10077487]
[1693808580699,0.01861669,25976.0,25975.0,1.10569487]
[1693808580909,0.01861669,25976.0,25975.0,1.10425487]
[1693808581115,0.01861669,25976.0,25975.0,1.10407487]
[1693808581303,0.01861669,25976.0,25975.0,1.10275487]
[1693808581506,0.01861669,25976.0,25975.0,1.10311487]
[1693808581704,0.01861669,25976.0,25975.0,1.10317487]
[1693808581933,0.01861669,25976.0,25975.0,1.10323487]
[1693808582107,0.01861669,25976.0,25975.0,1.10335487]
[1693808582324,0.01861669,25976.0,25975.0,1.10371487]
[1693808582497,0.01861669,25976.0,25975.0,1.10353487]
[1693808582697,0.01861669,25976.0,25975.0,1.10431487]
[1693808582904,0.01861669,25976.0,25975.0,1.10521487]
[1693808583693,0.01861669,25976.0,25975.0,1.10569487]
[1693808583908,0.01861669,25976.0,25975.0,1.10401487]
[1693808584063,0.01861669,25976.0,25975.0,1.10479487]
[1693808584295,0.01861669,25976.0,25975.0,1.11529487]
[1693808584487,0.01861669,25976.0,25975.0,1.11361487]
[1693808584655,0.01861669,25976.0,25975.0,1.11325487]
[1693808585015,0.01861669,25976.0,25975.0,1.11319487]
[1693808585236,0.01861669,25976.0,25975.0,1.11367487]
[1693808585437,0.01861669,25976.0,25975.0,1.22813487]
[1693808585638,0.01861669,25976.0,25975.0,1.22891487]
[1693808585864,0.01861669,25976.0,25975.0,1.23497487]
[1693808586001,0.01861669,25976.0,25975.0,1.23587487]
[1693808586224,0.01861669,25976.0,25975.0,1.23665487]
[1693808586429,0.01861669,25976.0,25975.0,1.23383487]
[1693808586630,0.01861669,25976.0,25975.0,1.23461487]
[1693808586857,0.01861669,25976.0,25975.0,1.23299487]
[1693808587197,0.01861669,25976.0,25975.0,1.23311487]
[1693808587400,0.01861669,25976.0,25975.0,1.23299487]
[1693808587603,0.01861669,25976.0,25975.0,1.23323487]
[1693808587840,0.01861669,25976.0,25975.0,1.23347487]
[1693808588019,0.01861669,25976.0,25975.0,1.23359487]
[1693808588228,0.01861669,25976.0,25975.0,1.23353487]
[1693808588443,0.01861669,25976.0,25975.0,1.23347487]
[1693808588701,0.01861669,25976.0,25975.0,1.23323487]
[1693808588918,0.01861669,25976.0,25975.0,1.22711487]
[1693808589078,0.01861669,25976.0,25975.0,1.22669487]
[1693808589277,0.01861669,25976.0,25975.0,1.22633487]
[1693808589508,0.01861669,25976.0,25975.0,1.22777487]
[1693808589693,0.01861669,25976.0,25975.0,1.22867487]
[1693808589889,0.01861669,25976.0,25975.0,1.22855487]
[1693808590063,0.01861669,25976.0,25975.0,1.22453487]
[1693808590268,0.01861669,25976.0,25975.0,1.31436806]
[1693808590494,0.01861669,25976.0,25975.0,1.31604806]
[1693808590720,0.01861669,25976.0,25975.0,1.31586806]
[1693808590951,0.01861669,25976.0,25975.0,1.31772806]
[1693808591155,0.01861669,25976.0,25975.0,1.31784806]
[1693808591360,0.01861669,25976.0,25975.0,1.45625785]
[1693808591586,0.01861669,25976.0,25975.0,1.45541785]
[1693808591762,0.01861669,25976.0,25975.0,1.63816433]
[1693808591966,0.01861669,25976.0,25975.0,1.66993632]
[1693808592169,0.01861669,25976.0,25975.0,1.44013334]
[1693808592376,0.01861669,25976.0,25975.0,1.62357973]
[1693808592587,0.01861669,25976.0,25975.0,1.62369973]
[1693808592792,0.01861669,25976.0,25975.0,1.62375973]
[1693808592997,0.01861669,25976.0,25975.0,1.62327973]
[1693808593231,0.01861669,25976.0,25975.0,1.62345973]
[1693808593410,0.01861669,25976.0,25975.0,1.85290272]
[1693808593617,0.01861669,25976.0,25975.0,1.84918272]
[1693808593837,0.01861669,25976.0,25975.0,1.61991973]
[1693808594042,0.01861669,25976.0,25975.0,1.61997973]
[1693808594246,0.01861669,25976.0,25975.0,1.66730249]
[1693808594450,0.01861669,25976.0,25975.0,1.84996943]
[1693808594653,0.01861669,25976.0,25975.0,1.85152943]
[1693808594854,0.01861669,25976.0,25975.0,1.66724249]
[1693808595067,0.01861669,25976.0,25975.0,1.85158914]
[1693808595267,0.01861669,25976.0,25975.0,1.66478249]
[1693808595505,0.01861669,25976.0,25975.0,1.66496249]
[1693808595706,0.01861669,25976.0,25975.0,1.66610249]
[1693808595907,0.01861669,25976.0,25975.0,1.66520249]
[1693808596014,0.01861669,25976.0,25975.0,1.60490249]
[1693808596233,0.01861669,25976.0,25975.0,1.60082249]
[1693808596522,0.01861669,25976.0,25975.0,1.60160249]
[1693808596723,0.01861669,25976.0,25975.0,1.60214249]
[1693808596925,0.01861669,25976.0,25975.0,1.60220249]
[1693808597111,0.01861669,25976.0,25975.0,1.60250249]
[1693808597307,0.01861669,25976.0,25975.0,1.3523102]
[1693808597535,0.01861669,25976.0,25975.0,1.3522502]
[1693808597737,0.01861669,25976.0,25975.0,1.58355232]
[1693808597915,0.01861669,25976.0,25975.0,1.58319232]
[1693808598139,0.01861669,25976.0,25975.0,1.3531502]
[1693808598378,0.01861669,25976.0,25975.0,1.3532702]
[1693808598572,0.01861669,25976.0,25975.0,1.3515902]
[1693808598808,0.0198,25978.0,25977.0,0.04026809]
[1693808598960,0.0198,25978.0,25977.0,1.15286348]
[1693808599162,0.0198,25978.0,25977.0,1.33498566]
[1693808599365,0.0198,25978.0,25977.0,1.40800566]
[1693808599569,0.0198,25978.0,25977.0,1.40752566]
[1693808599767,0.0198,25978.0,25977.0,1.40578566]
[1693808599977,0.0198,25978.0,25977.0,1.17558074]
[1693808600723,0.0198,25978.0,25977.0,1.20058074]
[1693808601557,0.0198,25978.0,25977.0,1.16950176]
[1693808601764,0.0198,25978.0,25977.0,1.16956176]
[1693808601986,0.0198,25978.0,25977.0,1.16950176]
[1693808602201,0.0198,25978.0,25977.0,1.16962176]
[1693808602382,0.0198,25978.0,25977.0,1.16986176]
[1693808602598,0.0198,25978.0,25977.0,1.16974176]
[1693808602750,0.0198,25978.0,25977.0,1.07356278]
[1693808602949,0.0198,25978.0,25977.0,1.07428278]
[1693808603152,0.0198,25978.0,25977.0,1.07440278]
[1693808603368,0.0198,25978.0,25977.0,1.07584278]
[1693808603579,0.0198,25978.0,25977.0,1.07500278]
[1693808603783,0.0198,25978.0,25977.0,1.07554278]
[1693808603963,0.0198,25978.0,25977.0,0.9118638]
[1693808604167,0.0198,25978.0,25977.0,1.09626872]
[1693808605205,0.0198,25978.0,25977.0,0.8193271]
[1693808606251,0.0198,25978.0,25977.0,1.04983326]
[1693808606457,0.0198,25978.0,25977.0,0.72308812]
[1693808607783,0.0198,25978.0,25977.0,0.69182914]
[1693808607913,0.0198,25978.0,25977.0,0.69170914]
[1693808608112,0.0198,25978.0,25977.0,0.9223353]
[1693808608316,0.0198,25978.0,25977.0,0.8573553]
[1693808608558,0.0198,25978.0,25977.0,0.8773553]
[1693808608998,0.0198,25978.0,25977.0,0.78111632]
[1693808609626,0.0198,25978.0,25977.0,0.84603632]
[1693808609823,0.0198,25978.0,25977.0,0.84621632]
[1693808610032,0.0198,25978.0,25977.0,0.78111632]
[1693808610260,0.0198,25978.0,25977.0,0.68487734]
[1693808610842,0.0198,25978.0,25977.0,0.75063734]
[1693808611020,0.0198,25978.0,25977.0,0.68487734]
[1693808611382,0.0198,25978.0,25977.0,0.58863836]
[1693808612030,0.0198,25978.0,25977.0,0.3581322]
[1693808612185,0.0198,25978.0,25977.0,0.58863836]
[1693808612384,0.0198,25978.0,25977.0,0.88863836]
[1693808612811,0.0198,25978.0,25977.0,0.79239938]
[1693808613020,0.0198,25978.0,25977.0,0.87519938]
[1693808614047,0.0198,25978.0,25977.0,0.7789604]
[1693808614254,0.23003639,25978.0,25977.0,0.6761604]
[1693808614454,0.23003639,25978.0,25977.0,0.43840044]
[1693808614703,0.24673164,25978.0,25977.0,0.53066254]
[1693808615359,0.24673164,25978.0,25977.0,0.43442356]
[1693808616507,0.24673164,25978.0,25977.0,0.23066254]
[1693808617548,0.24673164,25978.0,25977.0,0.0922621]
[1693808617757,0.24673164,25978.0,25976.0,0.13442356]
[1693808618956,0.24873164,25978.0,25976.0,0.15942356]
[1693808619155,0.24873164,25978.0,25976.0,0.06318443]
[1693808619362,0.24873164,25978.0,25976.0,0.36318443]
[1693808619766,0.25073164,25978.0,25976.0,0.38818443]
[1693808620407,0.25073164,25978.0,25976.0,0.29194174]
[1693808621631,0.25073164,25978.0,25976.0,0.19569905]
[1693808622764,0.25073164,25978.0,25976.0,0.09945636]
[1693808622941,0.25073164,25978.0,25976.0,0.025]
[1693808624198,0.25073164,25978.0,25975.0,0.22737486]
[1693808625130,0.24873164,25978.0,25976.0,0.3]
[1693808625335,0.24873164,25978.0,25976.0,0.20375457]
[1693808626103,0.24873164,25978.0,25976.0,0.22775457]
[1693808626304,0.2190533,25977.0,25976.0,0.22775457]
[1693808626504,0.23558324,25977.0,25976.0,0.23175457]
[1693808626706,0.23558324,25977.0,25976.0,0.13551188]
[1693808626907,0.23558324,25977.0,25976.0,0.028]
[1693808627307,0.23558324,25977.0,25976.0,0.024]
[1693808627561,0.23858324,25977.0,25976.0,0.004]
[1693808627746,0.24058324,25977.0,25976.0,0.12021577]
[1693808627958,0.24058324,25977.0,25976.0,0.02397308]
[1693808628385,0.02152994,25977.0,25976.0,0.02397308]
[1693808628993,0.02152994,25977.0,25976.0,0.17761886]
[1693808629165,0.02152994,25977.0,25976.0,0.15364578]
[1693808629380,0.02152994,25977.0,25976.0,0.45364578]
[1693808629907,0.02152994,25977.0,25976.0,0.44894401]
[1693808630179,0.02152994,25977.0,25976.0,0.3]
[1693808630387,0.02152994,25977.0,25976.0,0.20375731]
[1693808631645,0.02152994,25977.0,25976.0,0.10751462]
[1693808631858,0.02152994,25977.0,25975.0,0.14243942]
[1693808632826,0.01852994,25977.0,25975.0,0.04619673]
[1693808633026,0.01852994,25977.0,25975.0,0.06919673]
[1693808633232,0.02052994,25977.0,25975.0,0.06919673]
[1693808633863,0.02052994,25977.0,25975.0,0.20750617]
[1693808634079,0.01852994,25977.0,25976.0,0.3]
[1693808634280,0.01852994,25977.0,25976.0,0.20375168]
[1693808634476,0.02052994,25977.0,25976.0,0.20375168]
[1693808635028,0.01852994,25977.0,25976.0,0.20375168]
[1693808635228,0.02152994,25977.0,25976.0,0.20975168]
[1693808635430,0.01952994,25977.0,25976.0,0.11350899]
[1693808635631,0.01952994,25977.0,25976.0,0.006]
[1693808635861,0.02152994,25977.0,25976.0,0.029]
[1693808636796,0.02152994,25977.0,25975.0,0.11726348]
[1693808637193,0.02152994,25977.0,25975.0,0.25766465]
[1693808637619,0.01852994,25977.0,25976.0,0.3]
[1693808637967,0.01852994,25977.0,25974.0,0.37798616]
[1693808637968,0.02152994,25977.0,25975.0,0.29596398]
[1693808638299,0.01652994,25977.0,25975.0,0.29596398]
[1693808638504,0.0198,25978.0,25975.0,0.29596398]
[1693808638709,0.01629131,25976.0,25975.0,0.29796398]
[1693808638922,0.01629131,25976.0,25975.0,0.43842692]
[1693808639116,0.006,25977.0,25975.0,0.43842692]
[1693808639348,0.006,25977.0,25975.0,0.19972129]
[1693808639556,0.003,25977.0,25975.0,0.19972129]
[1693808639759,0.01929131,25976.0,25975.0,0.20172129]
[1693808639957,0.01629131,25976.0,25975.0,0.33418017]
[1693808640191,0.0198,25978.0,25975.0,0.33418017]
[1693808640390,0.003,25977.0,25975.0,0.20172129]
[1693808640589,0.02229131,25977.0,25975.0,0.1054749]
[1693808640793,0.02229131,25977.0,25975.0,0.002]
[1693808641038,0.01929131,25977.0,25975.0,0.002]
[1693808641626,0.01629131,25977.0,25974.0,0.31330616]
[1693808641826,0.003,25976.0,25975.0,0.13630187]
[1693808642030,0.003,25977.0,25975.0,0.13430187]
[1693808642457,0.006,25977.0,25975.0,0.13630187]
[1693808642662,0.29353189,25976.0,25974.0,0.21705977]
[1693808642864,0.29353189,25976.0,25975.0,0.42813229]
[1693808643074,0.29653189,25976.0,25975.0,0.43013229]
[1693808643419,0.29353189,25976.0,25975.0,0.3]
[1693808643544,0.29353189,25976.0,25975.0,0.42815301]
[1693808643746,0.29653189,25976.0,25975.0,0.3]
[1693808643970,0.29653189,25976.0,25974.0,0.3828]
[1693808644646,0.29653189,25976.0,25975.0,0.002]
[1693808644864,0.29353189,25976.0,25974.0,0.56725425]
[1693808645269,0.29353189,25976.0,25974.0,0.56925425]
[1693808645270,0.29753189,25976.0,25974.0,0.56925425]
[1693808645472,0.29553189,25976.0,25974.0,0.56725425]
[1693808645675,0.29853189,25976.0,25975.0,0.002]
[1693808645875,0.29853189,25976.0,25975.0,0.14034096]
[1693808646078,0.29553189,25976.0,25975.0,0.43834096]
[1693808646238,0.29753189,25976.0,25975.0,0.43834096]
[1693808646456,0.29553189,25976.0,25975.0,0.43834096]
[1693808646838,0.005,25976.0,25975.0,0.43834096]
[1693808647568,0.003,25976.0,25975.0,0.3]
[1693808647963,0.003,25976.0,25975.0,0.39222538]
[1693808648364,0.006,25976.0,25975.0,0.39422538]
[1693808653974,0.003,25976.0,25975.0,0.39422538]
[1693808654191,0.003,25976.0,25975.0,0.39222538]
[1693808654537,0.006,25976.0,25975.0,0.53256634]
[1693808655523,0.02228181,25976.0,25975.0,0.53256634]
[1693808656102,0.02228181,25976.0,25975.0,0.56763588]
[1693808656324,0.02228181,25976.0,25975.0,0.75209013]
[1693808656701,0.006,25976.0,25975.0,0.7835264]
[1693808657707,0.006,25976.0,25975.0,0.64518544]
[1693808667818,0.02113806,25976.0,25975.0,0.64518544]
[1693808669342,0.27080983,25976.0,25975.0,0.78357859]
[1693808671717,0.27080983,25976.0,25975.0,0.48357859]
[1693808671953,0.27080983,25976.0,25975.0,0.29912434]
[1693808673722,0.26780983,25976.0,25975.0,0.29712434]
[1693808673927,0.26480983,25976.0,25975.0,0.29712434]
[1693808674130,0.26780983,25976.0,25975.0,0.29912434]
[1693808674603,0.26480983,25976.0,25975.0,0.29712434]
[1693808674810,0.26680983,25976.0,25975.0,0.29912434]
[1693808675213,0.26980983,25976.0,25975.0,0.29912434]
[1693808675854,0.26680983,25976.0,25975.0,0.29912434]
[1693808676059,0.26880983,25976.0,25975.0,0.29912434]
[1693808686980,0.26880983,25976.0,25975.0,0.48912434]
[1693808687892,0.26880983,25976.0,25975.0,0.67357859]
[1693808688252,0.26880983,25976.0,25975.0,0.48912434]
[1693808706341,0.26830983,25976.0,25975.0,0.48912434]
[1693808709243,0.26830983,25976.0,25975.0,0.67357859]
[1693808710268,0.26830983,25976.0,25975.0,0.48912434]
[1693808710473,0.28830983,25976.0,25975.0,0.31572861]
[1693808715556,0.28830983,25976.0,25975.0,0.22343627]
[1693808716359,0.28830983,25976.0,25975.0,0.31572861]
[1693808716564,0.28830983,25976.0,25975.0,0.22343627]
[1693808735597,0.76633111,25976.0,25975.0,0.192]
[1693808736621,0.76433111,25976.0,25975.0,0.192]
[1693808737024,0.76233111,25976.0,25975.0,0.19]
[1693808737229,0.77333111,25976.0,25975.0,0.19]
[1693808737643,0.76233111,25976.0,25975.0,0.19]
[1693808737819,0.79533111,25976.0,25975.0,0.19]
[1693808738344,0.78633111,25976.0,25975.0,0.19]
[1693808738550,0.81033111,25976.0,25975.0,0.19]
[1693808756422,0.79033111,25976.0,25975.0,0.19]
[1693808756625,0.81033111,25976.0,25975.0,0.19]
[1693808763119,0.72753111,25976.0,25975.0,0.19]
[1693808776569,0.72753111,25976.0,25975.0,0.42763471]
[1693808776570,0.08263806,25976.0,25975.0,0.42763471]
[1693808776782,0.08263806,25976.0,25975.0,0.36507983]
[1693808776989,0.08263806,25976.0,25975.0,0.50349958]
[1693808777609,0.05863806,25976.0,25975.0,0.54184302]
[1693808777821,0.05263806,25976.0,25975.0,0.54184302]
[1693808778229,0.03463806,25976.0,25975.0,0.54184302]
[1693808778769,0.03563806,25976.0,25975.0,0.54284302]
[1693808779181,0.03563806,25976.0,25975.0,0.63509966]
[1693808779582,0.03563806,25976.0,25975.0,0.54284302]
[1693808779781,0.03763806,25976.0,25975.0,0.54384302]
[1693808780001,0.03763806,25976.0,25975.0,0.54284302]
[1693808780002,0.03563806,25976.0,25975.0,0.54284302]
[1693808780201,0.03563806,25976.0,25975.0,0.6350927]
[1693808780359,0.03763806,25976.0,25975.0,0.6360927]
[1693808780558,0.03763806,25976.0,25975.0,0.50546943]
[1693808780964,0.03763806,25976.0,25975.0,0.57314943]
[1693808781186,0.03763806,25976.0,25975.0,0.58130943]
[1693808781387,0.03763806,25976.0,25975.0,0.58124943]
[1693808781592,0.03763806,25976.0,25975.0,0.57458943]
[1693808781790,0.03763806,25976.0,25975.0,0.57392943]
[1693808781969,0.03763806,25976.0,25975.0,0.57404943]
[1693808782167,0.03763806,25976.0,25975.0,0.43490968]
[1693808782371,0.01763806,25976.0,25975.0,0.58502943]
[1693808782582,0.01763806,25976.0,25975.0,0.73117461]
[1693808782779,0.01763806,25976.0,25975.0,0.72853461]
[1693808783028,0.01763806,25976.0,25975.0,0.63880493]
[1693808783204,0.01763806,25976.0,25975.0,0.63886493]
[1693808783421,0.003,25976.0,25975.0,1.16767171]
[1693808783666,0.003,25976.0,25975.0,1.16575171]
[1693808783863,0.003,25976.0,25975.0,1.16551171]
[1693808784067,0.003,25976.0,25975.0,1.16491171]
[1693808784273,0.003,25976.0,25975.0,1.16383171]
[1693808784475,0.003,25976.0,25975.0,1.16347171]
[1693808784682,0.003,25976.0,25975.0,1.16317171]
[1693808784880,0.003,25976.0,25975.0,1.16299171]
[1693808785081,0.003,25976.0,25975.0,1.16053171]
[1693808785315,0.003,25976.0,25975.0,1.16023171]
[1693808785536,0.003,25976.0,25975.0,1.15987171]
[1693808785742,0.003,25976.0,25975.0,1.15933171]
[1693808785949,0.003,25976.0,25975.0,1.15891171]
[1693808786153,0.003,25976.0,25975.0,1.18954214]
[1693808786361,0.003,25976.0,25975.0,1.18888214]
[1693808786570,0.003,25976.0,25975.0,1.17856214]
[1693808786672,0.003,25976.0,25975.0,1.17634214]
[1693808786886,0.003,25976.0,25975.0,1.17706214]
[1693808787098,0.003,25976.0,25975.0,1.17754214]
[1693808787295,0.003,25976.0,25975.0,1.17652214]
[1693808787498,0.003,25976.0,25975.0,1.17640214]
[1693808787698,0.003,25976.0,25975.0,1.17574214]
[1693808787958,0.003,25976.0,25975.0,1.17514214]
[1693808788161,0.003,25976.0,25975.0,1.16860214]
[1693808788380,0.003,25976.0,25975.0,0.77929536]
[1693808788612,0.003,25976.0,25975.0,0.68669536]
[1693808791289,0.003,25976.0,25975.0,0.77887366]
[1693808791492,0.003,25976.0,25975.0,0.75137536]
[1693808791719,0.003,25976.0,25975.0,0.68669536]
[1693808791928,0.003,25976.0,25975.0,0.75455536]
[1693808792221,0.003,25976.0,25975.0,0.84673106]
[1693808792543,0.003,25976.0,25975.0,0.84619106]
[1693808792896,0.003,25976.0,25975.0,0.84643106]
[1693808793029,0.003,25976.0,25975.0,0.75155536]
[1693808793229,0.003,25976.0,25975.0,0.84366861]
[1693808793476,0.003,25976.0,25975.0,0.84504861]
[1693808793769,0.003,25976.0,25975.0,0.77886861]
[1693808793911,0.003,25976.0,25975.0,0.76397536]
[1693808794111,0.003,25976.0,25975.0,0.85614783]
[1693808794313,0.003,25976.0,25975.0,0.85464783]
[1693808794541,0.003,25976.0,25975.0,0.85290783]
[1693808794738,0.003,25976.0,25975.0,0.85158783]
[1693808794943,0.003,25976.0,25975.0,0.85164783]
[1693808795144,0.003,25976.0,25975.0,0.85062783]
[1693808795371,0.003,25976.0,25975.0,0.85290783]
[1693808795643,0.003,25976.0,25975.0,0.85266783]
[1693808795842,0.003,25976.0,25975.0,0.85320783]
[1693808796046,0.003,25976.0,25975.0,0.85374783]
[1693808796241,0.003,25976.0,25975.0,0.72200265]
[1693808796471,0.0170433,25976.0,25975.0,0.72140265]
[1693808796688,0.003,25976.0,25975.0,0.72206265]
[1693808796890,0.003,25976.0,25975.0,0.72212265]
[1693808797318,0.003,25976.0,25975.0,0.72254265]
[1693808797650,0.003,25976.0,25975.0,0.72242265]
[1693808797850,0.003,25976.0,25975.0,0.72236265]
[1693808798237,0.003,25976.0,25975.0,0.72308265]
[1693808798519,0.003,25976.0,25975.0,0.72248265]
[1693808798746,0.003,25976.0,25975.0,0.72080265]
[1693808799145,0.003,25976.0,25975.0,0.72158265]
[1693808799570,0.003,25976.0,25975.0,0.72116265]
[1693808799692,0.003,25976.0,25975.0,0.72098265]
[1693808799891,0.003,25976.0,25975.0,0.71978265]
[1693808800138,0.003,25976.0,25975.0,0.71960265]
[1693808800453,0.003,25976.0,25975.0,0.71966265]
[1693808800897,0.003,25976.0,25975.0,0.71924265]
[1693808801020,0.003,25976.0,25975.0,0.71990265]
[1693808801233,0.003,25976.0,25975.0,0.72038265]
[1693808801433,0.003,25976.0,25975.0,0.72050265]
[1693808801639,0.003,25976.0,25975.0,0.72044265]
[1693808801822,0.003,25976.0,25975.0,0.72122265]
[1693808802024,0.003,25976.0,25975.0,0.72032265]
[1693808802264,0.003,25976.0,25975.0,0.72038265]
[1693808802651,0.003,25976.0,25975.0,0.71990265]